bitfinex/quotes_SOLUSD_20250818
["timestamp","ask_amount","ask_price","bid_price","bid_amount"]
[1755496360451,0.49,182.36,182.33,42.08]
[1755496361420,0.49,182.36,182.3,0.71]
[1755496361421,0.49,182.35,182.28,5.48606539]
[1755496361666,5.97416062,182.35,182.28,47.56606539]
[1755496361863,11.48268062,182.32,182.28,42.08]
[1755496362063,5.48416062,182.35,182.28,42.08]
[1755496362231,0.49,182.32,182.28,42.08]
[1755496362430,11.97268062,182.32,182.28,42.08]
[1755496363272,5.48486666,182.32,182.28,42.08]
[1755496363425,0.49,182.31,182.28,42.08]
[1755496363625,11.97268062,182.3,182.27,17.44466623]
[1755496363931,0.49,182.34,182.28,0.71]
[1755496364139,0.49,182.34,182.28,42.79]
[1755496364140,26.0,182.34,182.28,42.79]
[1755496364327,26.0,182.34,182.3,11.48268062]
[1755496364524,0.49,182.37,182.3,42.08]
[1755496364525,31.97340763,182.37,182.3,42.08]
[1755496364745,26.0,182.37,182.34,11.48268062]
[1755496364952,11.48268062,182.38,182.33,11.48268062]
[1755496365141,11.48268062,182.34,182.3,42.08]
[1755496365372,5.97377184,182.36,182.3,42.08]
[1755496365659,5.97377184,182.36,182.3,47.56540366]
[1755496365828,0.49,182.36,182.3,47.56540366]
[1755496366024,26.0,182.38,182.31,0.71]
[1755496366025,26.0,182.37,182.31,0.71]
[1755496366226,26.0,182.37,182.31,42.79]
[1755496366541,37.48268062,182.37,182.32,0.72]
[1755496366745,37.48268062,182.37,182.33,0.72]
[1755496366942,11.48268062,182.37,182.33,0.72]
[1755496367260,11.48268062,182.37,182.34,6.20423494]
[1755496368130,11.48268062,182.38,182.34,6.20423494]
[1755496368758,11.54268062,182.37,182.34,6.20423494]
[1755496368928,11.54268062,182.37,182.34,5.48423494]
[1755496369126,0.49,182.36,182.31,42.08]
[1755496369326,0.49,182.35,182.31,42.08]
[1755496369542,0.49,182.34,182.31,42.08]
[1755496369743,11.48268062,182.32,182.3,0.03]
[1755496369946,11.48268062,182.31,182.3,0.03]
[1755496370526,11.97268062,182.31,182.3,0.03]
[1755496372436,11.48268062,182.31,182.3,0.03]
[1755496372944,31.97433516,182.34,182.3,0.03]
[1755496373149,11.48268062,182.31,182.3,0.03]
[1755496373345,31.48433516,182.34,182.3,0.03]
[1755496373531,11.48268062,182.31,182.3,0.03]
[1755496374062,26.0,182.34,182.3,0.75]
[1755496374233,0.06,182.37,182.3,68.83]
[1755496374434,0.06,182.37,182.33,26.0]
[1755496374669,0.06,182.37,182.36,11.48268062]
[1755496375038,0.06,182.37,182.36,0.72]
[1755496375340,0.06,182.37,182.36,12.20268062]
[1755496375539,0.06,182.37,182.36,0.72]
[1755496375873,0.06,182.37,182.36,17.68633931]
[1755496377258,0.06,182.37,182.36,6.20365869]
[1755496377741,0.06,182.37,182.36,17.68633931]
[1755496378264,0.06,182.37,182.36,6.20365869]
[1755496378437,0.06,182.37,182.36,17.68633931]
[1755496379071,0.06,182.37,182.36,6.20365869]
[1755496379245,0.06,182.37,182.36,17.68633931]
[1755496379770,0.06,182.37,182.36,6.20365869]
[1755496379950,0.06,182.37,182.36,17.68633931]
[1755496380486,0.06,182.37,182.36,6.20365869]
[1755496380760,11.54268062,182.37,182.31,17.68784325]
[1755496380984,0.06,182.37,182.32,11.48268062]
[1755496381331,11.54268062,182.37,182.32,11.48268062]
[1755496381571,11.48268062,182.36,182.32,0.72]
[1755496381754,0.06,182.37,182.33,12.20268062]
[1755496382146,0.06,182.37,182.34,0.72]
[1755496382472,0.06,182.37,182.34,6.20408301]
[1755496383865,11.48268062,182.35,182.31,5.48512929]
[1755496384040,0.49,182.35,182.31,5.48512929]
[1755496384440,0.06,182.37,182.31,0.72]
[1755496384866,0.49,182.36,182.3,0.03]
[1755496385567,0.49,182.36,182.3,11.51268062]
[1755496385743,0.49,182.36,182.31,0.03]
[1755496386246,0.49,182.36,182.31,5.51516263]
[1755496386440,0.49,182.36,182.31,6.23516263]
[1755496386635,3.68607185,182.37,182.31,6.23516263]
[1755496388580,0.06,182.37,182.31,6.23516263]
[1755496388736,9.65991633,182.37,182.31,6.23516263]
[1755496389266,4.17639317,182.37,182.31,6.23516263]
[1755496389563,11.48268062,182.36,182.31,17.71784325]
[1755496389867,11.48268062,182.35,182.32,0.72]
[1755496390244,11.48268062,182.35,182.32,6.20475412]
[1755496390442,11.48268062,182.34,182.31,5.51509157]
[1755496390839,6.03344398,182.37,182.31,5.51509157]
[1755496391083,9.65909467,182.37,182.31,5.51509157]
[1755496391565,4.17565069,182.37,182.31,5.51509157]
[1755496391795,4.17565069,182.37,182.31,6.23509157]
[1755496392302,0.06,182.37,182.33,11.48268062]
[1755496392765,11.54268062,182.37,182.34,0.72]
[1755496393207,0.06,182.37,182.34,6.20424166]
[1755496393696,0.06,182.37,182.35,0.72]
[1755496393854,11.54268062,182.37,182.34,6.20424166]
[1755496394057,0.06,182.37,182.34,6.20424166]
[1755496394278,11.54268062,182.37,182.34,6.20424166]
[1755496394663,0.06,182.37,182.34,6.20424166]
[1755496394860,11.54268062,182.37,182.35,0.72]
[1755496395064,0.06,182.37,182.35,0.72]
[1755496395260,0.06,182.37,182.35,6.2038258]
[1755496395666,0.06,182.37,182.35,0.72]
[1755496395901,11.54268062,182.37,182.33,5.48456096]
[1755496396059,11.54268062,182.37,182.34,0.7]
[1755496396259,0.06,182.37,182.34,0.7]
[1755496396860,0.06,182.37,182.33,5.48456096]
[1755496396861,0.06,182.37,182.35,0.7]
[1755496397059,0.06,182.37,182.36,11.48268062]
[1755496397367,0.06,182.37,182.36,16.96633931]
[1755496397562,0.06,182.37,182.36,17.66633931]
[1755496401592,0.77428504,182.41,182.36,43.66633931]
[1755496401797,0.06,182.46,182.45,26.0]
[1755496401989,0.65,182.57,182.45,95.27699155]
[1755496402168,2.23431977,182.59,182.46,15.10621557]
[1755496402374,11.48268062,182.58,182.52,11.48268062]
[1755496402696,2.23431977,182.59,182.45,68.68809536]
[1755496402697,2.23431977,182.59,182.51,12.18268062]
[1755496402871,11.48268062,182.56,182.51,12.18268062]
[1755496403075,11.48268062,182.57,182.51,12.18268062]
[1755496403273,0.65,182.58,182.51,12.18268062]
[1755496403490,11.48268062,182.57,182.51,12.18268062]
[1755496403702,11.48268062,182.57,182.52,5.47885163]
[1755496403907,0.65,182.58,182.52,17.66153225]
[1755496404202,0.65,182.58,182.52,6.17885163]
[1755496404366,6.12709743,182.58,182.52,6.17885163]
[1755496404567,0.65,182.58,182.52,6.17885163]
[1755496404766,11.48268062,182.57,182.52,17.66153225]
[1755496404982,0.65,182.58,182.53,0.7]
[1755496405366,11.48268062,182.57,182.53,0.7]
[1755496405805,0.65,182.58,182.53,0.7]
[1755496405806,1.58431977,182.59,182.53,6.17845204]
[1755496406010,1.58431977,182.59,182.56,11.48268062]
[1755496406172,1.58431977,182.59,182.56,26.0]
[1755496406777,1.58431977,182.59,182.54,12.18268062]
[1755496407309,1.58431977,182.59,182.55,6.17795124]
[1755496407623,1.58431977,182.59,182.55,17.66063186]
[1755496407820,13.06700039,182.59,182.55,0.7]
[1755496407985,2.23431977,182.59,182.54,5.47805161]
[1755496408188,11.48268062,182.57,182.52,6.17856812]
[1755496408404,11.48268062,182.56,182.52,6.17856812]
[1755496408678,0.65,182.57,182.52,0.7]
[1755496408679,11.48268062,182.55,182.52,0.7]
[1755496408915,11.48268062,182.54,182.5,6.17940695]
[1755496409221,11.48268062,182.52,182.48,48.2400526]
[1755496409718,0.65,182.54,182.48,48.2400526]
[1755496409925,11.48268062,182.52,182.48,48.2400526]
[1755496410215,11.48268062,182.51,182.48,48.2400526]
[1755496410473,11.48268062,182.5,182.46,0.7]
[1755496410575,0.65,182.53,182.46,0.7]
[1755496410781,11.48268062,182.51,182.46,0.7]
[1755496411119,11.48268062,182.51,182.47,0.7]
[1755496411291,11.48268062,182.52,182.48,5.4800526]
[1755496411480,11.48268062,182.52,182.49,0.7]
[1755496412177,11.48268062,182.51,182.48,5.4800526]
[1755496412373,11.48268062,182.51,182.48,0.7]
[1755496412823,15.10621557,182.55,182.49,0.7]
[1755496412983,11.48268062,182.53,182.49,0.7]
[1755496413181,11.48268062,182.53,182.5,0.7]
[1755496413399,11.48268062,182.53,182.51,0.7]
[1755496413613,11.48268062,182.53,182.49,0.7]
[1755496414519,11.48268062,182.53,182.5,6.17945205]
[1755496414708,11.48268062,182.54,182.51,0.7]
[1755496415335,11.48268062,182.53,182.49,5.4796808]
[1755496415639,11.48268062,182.53,182.5,0.7]
[1755496415806,6.12774593,182.56,182.5,0.7]
[1755496416007,6.12774593,182.56,182.45,132.942681]
[1755496416008,11.48268062,182.52,182.47,0.7]
[1755496416516,11.48268062,182.51,182.47,6.18030617]
[1755496416927,11.48268062,182.5,182.47,6.18030617]
[1755496417652,11.48268062,182.51,182.47,85.58030617]
[1755496417825,11.48268062,182.5,182.47,80.1]
[1755496418024,11.48268062,182.49,182.46,5.48060152]
[1755496418231,11.48268062,182.49,182.46,6.18060152]
[1755496418454,11.48268062,182.49,182.45,5.48088384]
[1755496418644,11.48268062,182.47,182.44,5.48120725]
[1755496418940,11.48268062,182.48,182.44,6.18120725]
[1755496419122,11.48268062,182.49,182.45,0.7]
[1755496419507,11.48268062,182.49,182.46,0.7]
[1755496419915,11.48268062,182.48,182.46,0.7]
[1755496420116,6.12920677,182.51,182.46,0.7]
[1755496420328,0.65,182.51,182.46,6.18064949]
[1755496420534,6.12918253,182.51,182.46,6.18064949]
[1755496421141,6.12918253,182.51,182.46,0.7]
[1755496421344,0.65,182.5,182.45,5.48092003]
[1755496421507,5.47918253,182.51,182.45,5.48092003]
[1755496421710,11.48268062,182.5,182.46,6.18055714]
[1755496422610,11.48268062,182.49,182.46,6.18055714]
[1755496423046,26.0,182.52,182.47,0.7]
[1755496423345,11.48268062,182.53,182.48,0.7]
[1755496423551,0.06,182.54,182.49,0.7]
[1755496423840,0.06,182.54,182.47,53.52268062]
[1755496423841,11.48268062,182.53,182.5,0.7]
[1755496424044,0.06,182.54,182.51,0.7]
[1755496424523,0.06,182.54,182.52,0.7]
[1755496424910,0.06,182.54,182.51,42.04]
[1755496424911,0.06,182.54,182.53,0.7]
[1755496426643,0.06,182.54,182.53,6.17855147]
[1755496428048,0.06,182.54,182.53,17.66123209]
[1755496428348,0.06,182.54,182.53,6.17855147]
[1755496428650,0.06,182.54,182.53,17.66123209]
[1755496429621,0.06,182.54,182.53,19.85644109]
[1755496429834,1e-08,182.54,182.53,19.85644109]
[1755496430216,1e-08,182.54,182.53,34.96265666]
[1755496431359,1e-08,182.56,182.55,26.0]
[1755496431531,1e-08,182.56,182.55,84.98063186]
[1755496431723,1e-08,182.56,182.55,85.67063186]
[1755496432442,1e-08,182.56,182.55,74.18795124]
[1755496432755,1e-08,182.56,182.55,85.67063186]
[1755496433248,1e-08,182.56,182.55,32.16795124]
[1755496433453,1e-08,182.56,182.55,47.49795124]
[1755496434018,1e-08,182.56,182.55,42.02]
[1755496434530,11.48268063,182.56,182.55,42.02]
[1755496434842,12.13268063,182.56,182.53,42.02]
[1755496435149,0.65,182.55,182.53,42.02]
[1755496435355,12.13268062,182.54,182.53,42.02]
[1755496435653,12.13268062,182.54,182.49,5.47973587]
[1755496435855,11.48268062,182.51,182.5,42.02]
[1755496438049,0.65,182.53,182.5,42.02]
[1755496438249,11.48268062,182.51,182.5,42.02]
[1755496438648,11.48268062,182.52,182.5,47.49935969]
[1755496438968,11.48268062,182.53,182.5,47.49935969]
[1755496439163,0.65,182.55,182.5,48.18935969]
[1755496439365,11.48268062,182.54,182.51,0.69]
[1755496439548,11.48268062,182.54,182.51,6.16892862]
[1755496439746,1e-08,182.56,182.51,5.47892862]
[1755496440065,11.48268063,182.56,182.51,5.47892862]
[1755496440268,11.48268062,182.53,182.5,47.49936865]
[1755496440494,12.13268062,182.53,182.48,5.47975913]
[1755496440673,12.13268062,182.53,182.5,42.0]
[1755496440835,11.48268062,182.51,182.48,42.0]
[1755496441034,0.65,182.52,182.48,42.0]
[1755496441035,11.48268062,182.5,182.48,42.0]
[1755496441239,0.65,182.52,182.48,42.0]
[1755496441646,12.13268062,182.51,182.47,5.48027657]
[1755496441846,11.48268062,182.51,182.48,42.0]
[1755496442364,11.48268062,182.52,182.48,42.0]
[1755496442563,1e-08,182.56,182.49,12.17268062]
[1755496442766,11.48268062,182.55,182.5,12.17268062]
[1755496442938,11.48268062,182.55,182.51,42.69]
[1755496443671,11.48268062,182.55,182.51,48.16887018]
[1755496444058,11.48268062,182.54,182.51,42.0]
[1755496444268,11.48268062,182.54,182.51,47.47913858]
[1755496444665,11.48268062,182.54,182.51,42.0]
[1755496444880,11.48268062,182.54,182.5,5.47939168]
[1755496444881,11.48268062,182.52,182.49,79.4]
[1755496445058,11.48268062,182.5,182.49,42.0]
[1755496445263,0.65,182.51,182.49,42.0]
[1755496445464,11.48268062,182.5,182.49,42.0]
[1755496446462,11.48268062,182.51,182.49,42.0]
[1755496447655,11.48268062,182.5,182.49,42.0]
[1755496448153,11.48268062,182.51,182.49,42.0]
[1755496448960,11.48268062,182.52,182.49,42.0]
[1755496449466,11.45528062,182.52,182.49,42.0]
[1755496449668,11.48268062,182.51,182.49,42.0]
[1755496450254,11.48268062,182.5,182.49,42.0]
[1755496451174,3.6342348,182.52,182.49,42.0]
[1755496451361,11.48268062,182.5,182.47,41.98]
[1755496451690,11.48268062,182.49,182.47,41.98]
[1755496452565,11.48268062,182.48,182.45,80.09]
[1755496452766,11.48268062,182.46,182.44,0.03]
[1755496452965,11.48268062,182.45,182.44,0.03]
[1755496453197,0.65,182.48,182.44,0.03]
[1755496453369,15.10621557,182.48,182.44,0.03]
[1755496453578,11.48268062,182.46,182.44,0.72]
[1755496453873,11.48268062,182.47,182.44,0.72]
[1755496454087,26.0,182.48,182.44,0.72]
[1755496454399,11.48268062,182.47,182.44,0.72]
[1755496454984,11.48268062,182.46,182.44,0.72]
[1755496455363,21.23596788,182.49,182.44,0.72]
[1755496455694,11.48268062,182.47,182.44,0.72]
[1755496455988,11.48268062,182.46,182.44,0.72]
[1755496456358,11.48268062,182.46,182.44,0.03]
[1755496457456,6.13013299,182.48,182.44,0.03]
[1755496457773,11.48268062,182.46,182.44,0.03]
[1755496458284,11.48268062,182.46,182.44,0.74]
[1755496458471,11.48268062,182.46,182.44,0.03]
[1755496459495,11.48268062,182.45,182.44,0.03]
[1755496460509,7.38190977,182.45,182.44,0.03]
[1755496460886,5.48040796,182.47,182.44,0.03]
[1755496461396,5.4800526,182.48,182.44,0.03]
[1755496461596,6.1300526,182.48,182.44,0.03]
[1755496461889,0.65,182.47,182.44,0.03]
[1755496462467,6.13055403,182.47,182.44,0.03]
[1755496463381,0.65,182.47,182.44,0.03]
[1755496463571,5.48010926,182.48,182.44,0.74]
[1755496464273,26.0,182.48,182.45,0.71]
[1755496464470,6.12954439,182.5,182.45,6.19090978]
[1755496464701,5.47954439,182.5,182.45,121.36]
[1755496464876,0.65,182.49,182.45,121.36]
[1755496466108,0.65,182.48,182.45,121.36]
[1755496466689,32.13033741,182.48,182.45,121.36]
[1755496466895,0.06,182.54,182.46,0.71]
[1755496467209,1e-08,182.56,182.53,7.38190977]
[1755496467514,7.38190977,182.55,182.51,0.71]
[1755496467708,7.38190977,182.55,182.52,41.96]
[1755496467893,1e-08,182.56,182.52,41.96]
[1755496468099,1e-08,182.56,182.55,7.38190977]
[1755496468303,1e-08,182.56,182.55,49.34190977]
[1755496468628,1e-08,182.56,182.55,42.67]
[1755496469499,1e-08,182.56,182.55,41.96]
[1755496470685,11.46731397,182.56,182.55,41.96]
[1755496471095,11.46731397,182.56,182.53,41.94]
[1755496471815,11.46731396,182.55,182.53,41.94]
[1755496472013,1e-08,182.56,182.53,41.94]
[1755496472313,11.46731396,182.55,182.53,41.94]
[1755496472828,1e-08,182.56,182.53,41.94]
[1755496472987,11.46731397,182.56,182.53,42.65]
[1755496473498,1e-08,182.56,182.53,41.94]
[1755496473699,1e-08,182.56,182.54,0.71]
[1755496473900,11.46731397,182.56,182.54,0.71]
[1755496474782,1e-08,182.56,182.54,0.71]
[1755496475418,1e-08,182.56,182.53,41.94]
[1755496475588,11.46731397,182.56,182.53,41.94]
[1755496475914,11.46731397,182.56,182.53,42.65]
[1755496476732,11.46731397,182.56,182.53,122.05]
[1755496477916,11.46731397,182.56,182.53,79.4]
[1755496478090,11.46731396,182.54,182.49,0.71]
[1755496478416,0.69,182.55,182.5,41.9]
[1755496478599,11.46731396,182.52,182.5,41.9]
[1755496479330,11.46731396,182.52,182.47,84.88028213]
[1755496479492,11.46731396,182.5,182.47,0.71]
[1755496479692,11.46731396,182.5,182.48,41.9]
[1755496479892,11.46731396,182.5,182.47,0.71]
[1755496480522,11.46731396,182.51,182.48,0.71]
[1755496480695,11.46731396,182.51,182.49,0.71]
[1755496480900,5.47894196,182.52,182.49,0.71]
[1755496481099,11.46731396,182.51,182.49,0.71]
[1755496481614,37.46731396,182.52,182.5,0.71]
[1755496481910,32.05155907,182.55,182.51,0.71]
[1755496482104,26.00000001,182.56,182.52,11.46731396]
[1755496482105,1e-08,182.56,182.52,11.46731396]
[1755496482305,1e-08,182.56,182.53,0.71]
[1755496482747,1e-08,182.56,182.54,12.17731396]
[1755496483098,1e-08,182.56,182.55,0.71]
[1755496484998,1e-08,182.56,182.53,16.94577396]
[1755496485333,1e-08,182.56,182.54,0.71]
[1755496486121,1e-08,182.56,182.55,0.71]
[1755496488517,1e-08,182.56,182.55,80.11]
[1755496491813,1e-08,182.56,182.55,121.97]
[1755496493646,1e-08,182.56,182.55,127.44795124]
[1755496494016,1e-08,182.56,182.55,127.43795124]
[1755496494444,1e-08,182.56,182.55,48.03795124]
[1755496494647,1e-08,182.56,182.55,55.4092593]
[1755496495350,1e-08,182.56,182.55,134.8092593]
[1755496497823,1e-08,182.56,182.55,149.91547487]
[1755496498160,1e-08,182.56,182.55,134.8092593]
[1755496498363,1e-08,182.56,182.55,137.0039863]
[1755496501932,1e-08,182.56,182.55,152.11020187]
[1755496502463,0.06,182.6,182.57,33.37130806]
[1755496502650,0.06,182.6,182.59,7.37130806]
[1755496502825,0.06,182.6,182.59,12.84805925]
[1755496503024,1e-08,182.6,182.59,29.20194993]
[1755496503458,1e-08,182.6,182.59,28.65427482]
[1755496503673,1e-08,182.6,182.59,13.54805925]
[1755496503982,1e-08,182.6,182.59,39.54805925]
[1755496504350,1e-08,182.6,182.59,32.17675119]
[1755496504552,1e-08,182.6,182.59,81.32805925]
[1755496505269,1e-08,182.6,182.59,39.54805925]
[1755496505485,1e-08,182.6,182.59,81.32805925]
[1755496508251,1e-08,182.6,182.59,160.72805925]
[1755496508570,1e-08,182.6,182.59,169.83585525]
[1755496509669,1e-08,182.6,182.59,143.83585525]
[1755496509976,1e-08,182.6,182.59,158.94207082]
[1755496510548,101.00574005,182.76,182.63,26.0]
[1755496510549,0.68,182.7,182.63,26.0]
[1755496510785,0.68,182.7,182.64,42.44]
[1755496510991,0.68,182.7,182.65,7.37130806]
[1755496511182,0.68,182.7,182.66,41.74]
[1755496511490,0.68,182.69,182.67,5.47435265]
[1755496511681,0.68,182.69,182.68,41.74]
[1755496512487,8.05130806,182.69,182.67,41.74]
[1755496512792,8.05130806,182.68,182.67,41.74]
[1755496513168,8.05130806,182.68,182.66,41.74]
[1755496513357,0.68,182.67,182.66,41.74]
[1755496513693,8.05130806,182.69,182.66,41.74]
[1755496513879,0.68,182.68,182.66,41.74]
[1755496514186,0.68,182.67,182.66,41.74]
[1755496514388,8.05130806,182.67,182.66,41.74]
[1755496515183,7.37130806,182.68,182.66,41.74]
[1755496515382,8.05130806,182.68,182.66,41.74]
[1755496515605,0.68,182.67,182.66,41.74]
[1755496515959,8.05130806,182.67,182.66,41.74]
[1755496516281,0.68,182.67,182.66,41.74]
[1755496516467,7.37130806,182.68,182.66,41.74]
[1755496516673,0.68,182.69,182.66,41.74]
[1755496516861,8.05130806,182.69,182.66,41.74]
[1755496517267,0.68,182.69,182.66,47.21465098]
[1755496517484,8.05130806,182.69,182.66,47.21465098]
[1755496517999,3.63417293,182.72,182.67,8.03130806]
[1755496518293,3.63417293,182.72,182.66,47.21465098]
[1755496518294,0.06,182.73,182.69,7.37130806]
[1755496518460,0.06,182.73,182.7,41.7]
[1755496519474,0.06,182.73,182.7,47.17334171]
[1755496519872,0.06,182.73,182.72,7.37130806]
[1755496520092,0.06,182.73,182.72,41.7]
[1755496520282,0.06,182.73,182.72,49.73130806]
[1755496520675,0.06,182.73,182.72,42.36]
[1755496520875,0.06,182.73,182.72,49.73130806]
[1755496521497,0.06,182.73,182.72,55.2041627]
[1755496522198,0.06,182.73,182.72,55.1841627]
[1755496523998,0.06,182.73,182.72,5.47285464]
[1755496524204,0.06,182.73,182.72,47.13285464]
[1755496524411,0.06,182.73,182.72,47.79285464]
[1755496524707,0.06,182.73,182.72,55.1641627]
[1755496526208,0.06,182.73,182.72,134.56416269]
[1755496529003,1.57427802,182.77,182.75,26.0]
[1755496529191,1.57427802,182.77,182.76,49.01130806]
[1755496529394,1.57427802,182.77,182.76,49.67130806]
[1755496529798,1.57427802,182.77,182.76,57.72261706]
[1755496529983,0.68,182.84,182.76,154.69913788]
[1755496530187,8.05130806,182.87,182.81,7.37130806]
[1755496530415,7.37130806,182.86,182.82,41.62]
[1755496530627,7.37130806,182.85,182.82,41.62]
[1755496530973,0.13,182.84,182.82,41.62]
[1755496531176,7.37130806,182.84,182.78,7.371308]
[1755496531374,7.37130806,182.82,182.79,41.62]
[1755496531582,7.50130806,182.81,182.8,41.62]
[1755496531808,0.13,182.81,182.8,41.62]
[1755496532184,7.50130806,182.81,182.8,41.62]
[1755496532812,5.46931913,182.84,182.8,41.62]
[1755496532982,7.37130806,182.82,182.8,41.62]
[1755496533189,7.50130806,182.82,182.8,41.62]
[1755496533409,0.13,182.81,182.8,41.62]
[1755496534214,7.50130806,182.83,182.8,41.62]
[1755496534617,0.13,182.83,182.8,41.62]
[1755496534818,7.50130806,182.83,182.8,41.62]
[1755496535323,7.37130806,182.82,182.8,41.62]
[1755496535490,0.13,182.81,182.77,12.84256782]
[1755496535690,7.37130806,182.82,182.78,41.6]
[1755496536116,7.63130806,182.82,182.78,41.6]
[1755496536716,7.37130806,182.81,182.78,41.6]
[1755496537293,15.10621557,182.85,182.78,47.07099611]
[1755496537493,3.62070788,182.84,182.79,0.66]
[1755496537818,7.37130806,182.81,182.8,41.6]
[1755496538148,7.63130806,182.81,182.74,0.66]
[1755496538295,7.37130806,182.78,182.77,0.03]
[1755496538503,7.37130806,182.78,182.77,41.61]
[1755496539601,7.37130806,182.79,182.77,41.61]
[1755496539817,3.62245968,182.81,182.77,47.08117729]
[1755496540000,33.37130806,182.84,182.79,7.37130806]
[1755496540324,7.37130806,182.84,182.8,42.24]
[1755496540526,9.09429167,182.86,182.8,41.58]
[1755496540691,7.37130806,182.84,182.81,0.66]
[1755496540888,7.37130806,182.83,182.82,41.56]
[1755496541322,0.68,182.85,182.82,41.56]
[1755496541493,7.37130806,182.83,182.82,41.56]
[1755496541934,7.37130806,182.84,182.82,41.56]
[1755496542247,4.30556704,182.87,182.83,0.66]
[1755496542248,10.9968751,182.87,182.83,0.66]
[1755496542439,7.37130806,182.86,182.83,0.66]
[1755496543134,7.37130806,182.87,182.82,47.02985558]
[1755496543314,7.37130806,182.87,182.84,0.66]
[1755496543510,7.37130806,182.87,182.85,41.56]
[1755496544039,3.62556704,182.88,182.85,42.22]
[1755496544040,10.9968751,182.88,182.85,42.22]
[1755496544347,10.9968751,182.89,182.85,47.68894364]
[1755496544639,7.37130806,182.89,182.86,0.66]
[1755496544820,7.37130806,182.88,182.86,0.66]
[1755496545234,3.62556704,182.9,182.86,0.66]
[1755496545436,7.37130806,182.89,182.86,0.66]
[1755496545621,7.37130806,182.89,182.86,6.12861906]
[1755496545821,7.37130806,182.89,182.87,0.66]
[1755496546248,7.37130806,182.89,182.88,41.54]
[1755496546428,7.37130806,182.9,182.88,41.54]
[1755496546748,0.06,182.91,182.89,0.69]
[1755496547337,0.06,182.91,182.88,41.54]
[1755496547533,0.06,182.91,182.88,42.23]
[1755496547842,7.43130806,182.91,182.88,47.69790589]
[1755496548048,7.43130806,182.91,182.88,41.54]
[1755496548216,7.43130806,182.91,182.88,47.00806593]
[1755496548719,0.06,182.91,182.89,0.69]
[1755496549046,0.06,182.91,182.88,47.00806593]
[1755496549237,0.06,182.91,182.88,47.69806593]
[1755496551157,0.06,182.91,182.89,0.69]
[1755496551454,0.06,182.91,182.89,6.1576781]
[1755496552335,0.06,182.91,182.9,41.5]
[1755496554954,0.06,182.91,182.89,6.15773728]
[1755496555259,0.06,182.91,182.9,46.96746856]
[1755496555754,0.06,182.91,182.9,41.5]
[1755496556127,0.06,182.91,182.9,46.96746856]
[1755496556332,0.06,182.91,182.9,47.65746856]
[1755496556930,0.06,182.91,182.9,42.19]
[1755496558029,0.06,182.91,182.9,55.02877662]
[1755496558550,1.56423627,182.95,182.93,7.37130806]
[1755496558758,1.56423627,182.95,182.94,42.15]
[1755496558922,1.62423627,182.95,182.94,42.15]
[1755496559124,1.62423627,182.95,182.94,47.61627309]
[1755496561470,1.62423627,182.95,182.94,54.98758115]
[1755496562559,1.62423627,182.95,182.94,47.61627309]
[1755496562863,1.62423627,182.95,182.94,54.98758115]
[1755496563264,1.62423627,182.95,182.94,47.61627309]
[1755496565149,1.62423627,182.95,182.91,26.0]
[1755496565353,7.37130806,182.93,182.89,0.69]
[1755496565553,7.37130806,182.94,182.9,42.11]
[1755496565740,7.09026876,182.95,182.9,42.11]
[1755496565945,7.37130806,182.93,182.9,41.42]
[1755496566145,7.37130806,182.93,182.88,8.06130806]
[1755496566146,8.06130806,182.92,182.91,41.42]
[1755496566439,7.37130806,182.92,182.91,41.42]
[1755496566643,7.37130806,182.92,182.88,0.69]
[1755496566830,7.37130806,182.89,182.84,0.69]
[1755496567031,7.37130806,182.9,182.85,75.48130806]